lending/lending_fUSD_20250719
["ID","MTS","AMOUNT","RATE_DAILY","PERIOD"]
[373218249,1752909060938,-150.0,0.00020869,2]
[373218250,1752909060947,-200.0,0.00020873,2]
[373218251,1752909060958,-227.91,0.00020879,2]
[373218252,1752909060967,-180.63,0.00020882,2]
[373218253,1752909060977,-190.0,0.00020888,2]
[373218254,1752909060987,-370.83,0.000209,2]
[373218255,1752909060998,-2596.54,0.000209,2]
[373218256,1752909061008,-2415.09,0.000209,2]
[373218257,1752909061018,-190.0,0.00020913,2]
[373218258,1752909061028,-150.0,0.00020921,2]
[373218259,1752909061038,-151.96,0.00020922,2]
[373218260,1752909061048,-2505.63,0.00020926,2]
[373218261,1752909061057,-726.16,0.00020929,2]
[373218262,1752909061066,-480.0,0.0002093,2]
[373218263,1752909061076,-151.0,0.0002093,2]
[373218264,1752909061086,-563.18,0.0002093,2]
[373218265,1752909061095,-518.14,0.0002093,2]
[373218266,1752909061106,-480.0,0.0002093,2]
[373218267,1752909061115,-191.17827327,0.0002093,2]
[373218268,1752909061180,-792.72,0.0002093,2]
[373218269,1752909061190,-480.0,0.0002093,2]
[373218270,1752909061199,-480.0,0.0002093,2]
[373218271,1752909061207,-600.12,0.0002093,2]
[373218272,1752909061216,-1354.91,0.0002093,2]
[373218273,1752909061225,-801.31,0.0002093,2]
[373218274,1752909061235,-764.91,0.0002093,2]
[373218275,1752909061246,-1230.98,0.0002093,2]
[373218276,1752909061255,-480.0,0.0002093,2]
[373218277,1752909061265,-897.36,0.0002093,2]
[373218278,1752909061275,-480.0,0.0002093,2]
[373218279,1752909061284,-718.18,0.0002093,2]
[373218280,1752909061294,-606.55,0.0002093,2]
[373218281,1752909061303,-480.0,0.0002093,2]
[373218282,1752909061312,-539.16,0.0002093,2]
[373218283,1752909061321,-480.0,0.0002093,2]
[373218284,1752909061331,-921.82,0.0002093,2]
[373218285,1752909061340,-480.0,0.0002093,2]
[373218286,1752909061351,-480.0,0.0002093,2]
[373218287,1752909061360,-480.0,0.0002093,2]
[373218288,1752909061371,-573.09,0.0002093,2]
[373218289,1752909061380,-843.96,0.0002093,2]
[373218290,1752909061390,-480.0,0.0002093,2]
[373218291,1752909061399,-480.0,0.0002093,2]
[373218292,1752909061408,-534.74,0.0002093,2]
[373218293,1752909061418,-480.0,0.0002093,2]
[373218294,1752909061427,-480.0,0.0002093,2]
[373218295,1752909061436,-7391.1,0.0002093,2]
[373218296,1752909061446,-637.96,0.0002093,2]
[373218297,1752909061455,-480.0,0.0002093,2]
[373218298,1752909061464,-875.35,0.0002093,2]
[373218299,1752909061474,-1009.52,0.0002093,2]
[373218300,1752909061484,-480.0,0.0002093,2]
[373218301,1752909061493,-1341.18,0.0002093,2]
[373218302,1752909061504,-937.01,0.0002093,2]
[373218303,1752909061526,-480.0,0.0002093,2]
[373218304,1752909061538,-681.25,0.0002093,2]
[373218305,1752909061548,-480.0,0.0002093,2]
[373218306,1752909061557,-480.0,0.0002093,2]
[373218307,1752909061566,-540.38,0.0002093,2]
[373218308,1752909061576,-480.0,0.0002093,2]
[373218309,1752909061585,-480.0,0.0002093,2]
[373218310,1752909061594,-835.27,0.0002093,2]
[373218311,1752909061604,-536.6,0.0002093,2]
[373218312,1752909061613,-1223.95,0.0002093,2]
[373218313,1752909061623,-480.0,0.0002093,2]
[373218314,1752909061632,-480.0,0.0002093,2]
[373218315,1752909061642,-499.34,0.0002093,2]
[373218316,1752909061652,-566.64,0.0002093,2]
[373218317,1752909061661,-571.22,0.0002093,2]
[373218318,1752909061671,-615.64,0.0002093,2]
[373218319,1752909061680,-480.0,0.0002093,2]
[373218320,1752909061690,-480.0,0.0002093,2]
[373218321,1752909061700,-1220.62,0.0002093,2]
[373218322,1752909061710,-480.0,0.0002093,2]
[373218323,1752909061720,-181.50363868,0.0002093,2]
[373218324,1752909061729,-480.0,0.0002093,2]
[373218325,1752909061738,-190.0,0.00020931,2]
[373218326,1752909061747,-581.07,0.00020931,2]
[373218327,1752909061757,-628.11,0.00020931,2]
[373218328,1752909061766,-480.0,0.00020931,2]
[373218329,1752909061775,-4441.88,0.00020931,2]
[373218330,1752909061785,-1011.37,0.00020931,2]
[373218331,1752909061796,-1953.2,0.00020931,2]
[373218332,1752909061809,-480.0,0.00020931,2]
[373218333,1752909061819,-631.07,0.00020931,2]
[373218334,1752909061829,-480.0,0.00020931,2]
[373218335,1752909061839,-725.13,0.00020931,2]
[373218336,1752909061850,-568.26,0.00020931,2]
[373218337,1752909061859,-2076.63,0.00020931,2]
[373218338,1752909061869,-480.0,0.00020931,2]
[373218339,1752909061880,-480.0,0.00020931,2]
[373218340,1752909061891,-150.0,0.00020948,2]
[373218341,1752909061900,-168.84017696,0.00020968,2]
[373218342,1752909061910,-330.38337552,0.00020977,2]
[373218343,1752909061920,-150.0,0.00021,2]
[373218344,1752909061930,-2578.6685021,0.00021,2]
[373218345,1752909061939,-565.757373,0.00021,2]
[373218346,1752909061948,-1000.0,0.00021005,2]
[373218347,1752909061957,-500.0,0.00021018,2]
[373218348,1752909061966,-200.0,0.00021018,2]
[373218349,1752909061975,-500.0,0.00021018,2]
[373218350,1752909061985,-150.0,0.00021018,2]
[373218351,1752909061995,-150.0,0.00021018,2]
[373218352,1752909062005,-150.0,0.00021018,2]
[373218353,1752909062014,-500.0,0.00021018,2]
[373218354,1752909062024,-150.0,0.00021018,2]
[373218355,1752909062033,-150.0,0.00021018,2]
[373218356,1752909062043,-500.0,0.00021018,2]
[373218357,1752909062052,-150.0,0.00021018,2]
[373218358,1752909062062,-150.0,0.00021018,2]
[373218359,1752909062072,-2577.0,0.00021018,2]
[373218360,1752909062082,-150.0,0.00021018,2]
[373218361,1752909062093,-150.0,0.00021018,2]
[373218362,1752909062104,-872.0,0.00021018,2]
[373218363,1752909062113,-150.0,0.00021018,2]
[373218364,1752909062123,-500.0,0.00021018,2]
[373218365,1752909062133,-150.0,0.00021018,2]
[373218366,1752909062142,-150.0,0.00021018,2]
[373218367,1752909062152,-150.0,0.00021018,2]
[373218368,1752909062161,-150.0,0.00021018,2]
[373218369,1752909062172,-150.0,0.00021018,2]
[373218370,1752909062183,-150.0,0.00021018,2]
[373218371,1752909062196,-150.0,0.00021018,2]
[373218372,1752909062206,-150.0,0.00021018,2]
[373218373,1752909062216,-200.75920096,0.00021018,2]
[373218374,1752909062225,-150.0,0.00021018,2]
[373218375,1752909062235,-150.0,0.00021018,2]
[373218376,1752909062244,-276.71508561,0.00021018,2]
[373218377,1752909062254,-150.0,0.00021018,2]
[373218378,1752909062263,-150.0,0.00021018,2]
[373218379,1752909062272,-661.0,0.00021018,2]
[373218380,1752909062281,-150.0,0.00021018,2]
[373218381,1752909062290,-500.0,0.00021018,2]
[373218382,1752909062299,-150.0,0.00021018,2]
[373218383,1752909062309,-150.0,0.00021018,2]
[373218384,1752909062318,-150.0,0.00021018,2]
[373218385,1752909062328,-190.0,0.00021018,2]
[373218386,1752909062338,-20000.0,0.00021028,2]
[373218387,1752909062347,-30629.5898891,0.0002103,2]
[373218388,1752909062357,-1501.5974902,0.0002103,2]
[373218389,1752909062367,-18948.6839722,0.0002103,2]
[373218390,1752909062377,-726.16,0.00021039,2]
[373218391,1752909062387,-480.0,0.0002104,2]
[373218392,1752909062396,-150.0,0.0002104,2]
[373218393,1752909062406,-151.0,0.0002104,2]
[373218394,1752909062415,-563.18,0.0002104,2]
[373218395,1752909062424,-518.14,0.0002104,2]
[373218396,1752909062433,-33428.9821003,0.0002104,2]
[373218397,1752909062443,-480.0,0.0002104,2]
[373218398,1752909062453,-4701.3066742,0.0002104,2]
[373218399,1752909062463,-792.72,0.0002104,2]
[373218400,1752909062473,-480.0,0.0002104,2]
[373218401,1752909062482,-480.0,0.0002104,2]
[373218402,1752909062491,-600.12,0.0002104,2]
[373218403,1752909062501,-1354.91,0.0002104,2]
[373218404,1752909062510,-801.31,0.0002104,2]
[373218405,1752909062519,-764.91,0.0002104,2]
[373218406,1752909062528,-1230.98,0.0002104,2]
[373218407,1752909062537,-480.0,0.0002104,2]
[373218408,1752909062547,-897.36,0.0002104,2]
[373218409,1752909062556,-261.03457221,0.0002104,2]
[373218410,1752909062566,-718.18,0.0002104,2]
[373218411,1752909062575,-606.55,0.0002104,2]
[373218412,1752909062585,-480.0,0.0002104,2]
[373218413,1752909062594,-539.16,0.0002104,2]
[373218414,1752909062603,-480.0,0.0002104,2]
[373218415,1752909062611,-921.82,0.0002104,2]
[373218416,1752909062621,-480.0,0.0002104,2]
[373218417,1752909062630,-480.0,0.0002104,2]
[373218418,1752909062640,-590.97569788,0.0002104,2]
[373218419,1752909062652,-573.09,0.0002104,2]
[373218420,1752909062663,-843.96,0.0002104,2]
[373218421,1752909062673,-480.0,0.0002104,2]
[373218422,1752909062683,-480.0,0.0002104,2]
[373218423,1752909062693,-534.74,0.0002104,2]
[373218424,1752909062703,-480.0,0.0002104,2]
[373218425,1752909062712,-480.0,0.0002104,2]
[373218426,1752909062722,-7391.1,0.0002104,2]
[373218427,1752909062732,-637.96,0.0002104,2]
[373218428,1752909062742,-480.0,0.0002104,2]
[373218429,1752909062751,-875.35,0.0002104,2]
[373218430,1752909062761,-480.0,0.0002104,2]
[373218431,1752909062771,-1009.52,0.0002104,2]
[373218432,1752909062780,-1341.18,0.0002104,2]
[373218433,1752909062790,-937.01,0.0002104,2]
[373218434,1752909062801,-480.0,0.0002104,2]
[373218435,1752909062811,-681.25,0.0002104,2]
[373218436,1752909062820,-480.0,0.0002104,2]
[373218437,1752909062830,-480.0,0.0002104,2]
[373218438,1752909062840,-540.38,0.0002104,2]
[373218439,1752909062850,-480.0,0.0002104,2]
[373218440,1752909062860,-480.0,0.0002104,2]
[373218441,1752909062869,-835.27,0.0002104,2]
[373218442,1752909062879,-536.6,0.0002104,2]
[373218443,1752909062889,-1223.95,0.0002104,2]
[373218444,1752909062898,-480.0,0.0002104,2]
[373218445,1752909062908,-480.0,0.0002104,2]
[373218446,1752909062917,-499.34,0.0002104,2]
[373218447,1752909062927,-566.64,0.0002104,2]
[373218448,1752909062936,-571.22,0.0002104,2]
[373218449,1752909062945,-615.64,0.0002104,2]
[373218450,1752909062955,-480.0,0.0002104,2]
[373218451,1752909062965,-480.0,0.0002104,2]
[373218452,1752909062975,-1220.62,0.0002104,2]
[373218453,1752909062985,-480.0,0.0002104,2]
[373218454,1752909062995,-480.0,0.0002104,2]
[373218455,1752909063005,-200.0,0.00021041,2]
[373218456,1752909063015,-222.0,0.00021041,2]
[373218457,1752909063024,-1210.0,0.00021041,2]
[373218458,1752909063033,-1210.0,0.00021041,2]
[373218459,1752909063043,-1210.0,0.00021041,2]
[373218460,1752909063052,-1225.60918743,0.00021041,2]
[373218461,1752909063061,-216.0,0.00021041,2]
[373218462,1752909063071,-216.0,0.00021041,2]
[373218463,1752909063080,-211.0,0.00021041,2]
[373218464,1752909063089,-211.0,0.00021041,2]
[373218465,1752909063099,-206.0,0.00021041,2]
[373218466,1752909063108,-206.0,0.00021041,2]
[373218467,1752909063117,-212.0,0.00021041,2]
[373218468,1752909063127,-212.0,0.00021041,2]
[373218469,1752909063136,-206.0,0.00021041,2]
[373218470,1752909063145,-206.0,0.00021041,2]
[373218471,1752909063154,-206.0,0.00021041,2]
[373218472,1752909063164,-206.0,0.00021041,2]
[373218473,1752909063174,-206.0,0.00021041,2]
[373218474,1752909063183,-232.0,0.00021041,2]
[373218475,1752909063192,-232.0,0.00021041,2]
[373218476,1752909063202,-232.0,0.00021041,2]
[373218477,1752909063211,-232.0,0.00021041,2]
[373218478,1752909063221,-232.0,0.00021041,2]
[373218479,1752909063230,-212.0,0.00021041,2]
[373218480,1752909063239,-232.0,0.00021041,2]
[373218481,1752909063249,-232.0,0.00021041,2]
[373218482,1752909063258,-212.0,0.00021041,2]
[373218483,1752909063267,-212.0,0.00021041,2]
[373218484,1752909063277,-212.0,0.00021041,2]
[373218485,1752909063286,-212.0,0.00021041,2]
[373218486,1752909063296,-212.0,0.00021041,2]
[373218487,1752909063304,-212.0,0.00021041,2]
[373218488,1752909063313,-212.0,0.00021041,2]
[373218489,1752909063322,-232.0,0.00021041,2]
[373218490,1752909063331,-206.0,0.00021041,2]
[373218491,1752909063340,-206.0,0.00021041,2]
[373218492,1752909063350,-206.0,0.00021041,2]
[373218493,1752909063359,-206.0,0.00021041,2]
[373218494,1752909063368,-206.0,0.00021041,2]
[373218495,1752909063378,-206.0,0.00021041,2]
[373218496,1752909063387,-169.0,0.00021041,2]
[373218497,1752909063397,-174.28570945,0.00021041,2]
[373218498,1752909063406,-152.0,0.00021041,2]
[373218499,1752909063415,-156.88962715,0.00021041,2]
[373218500,1752909063425,-153.0,0.00021041,2]
[373218501,1752909063434,-153.0,0.00021041,2]
[373218502,1752909063443,-153.0,0.00021041,2]
[373218503,1752909063461,-153.0,0.00021041,2]
[373218504,1752909063473,-298.06731718,0.00021041,2]
[373218505,1752909063483,-212.0,0.00021041,2]
[373218506,1752909063492,-343.77663,0.00021041,2]
[373218507,1752909063502,-581.07,0.00021041,2]
[373218508,1752909063512,-628.11,0.00021041,2]
[373218509,1752909063522,-480.0,0.00021041,2]
[373218510,1752909063532,-4441.88,0.00021041,2]
[373218511,1752909063541,-1011.37,0.00021041,2]
[373218512,1752909063551,-1953.2,0.00021041,2]
[373218513,1752909063561,-480.0,0.00021041,2]
[373218514,1752909063570,-631.07,0.00021041,2]
[373218515,1752909063580,-480.0,0.00021041,2]
[373218516,1752909063590,-725.13,0.00021041,2]
[373218517,1752909063600,-568.26,0.00021041,2]
[373218518,1752909063610,-2076.63,0.00021041,2]
[373218519,1752909063619,-480.0,0.00021041,2]
[373218520,1752909063629,-530.06623494,0.00021041,2]
[373218521,1752909063639,-190.0,0.00021042,2]
[373218522,1752909063648,-150.0,0.00021044,2]
[373218523,1752909063658,-190.0,0.00021055,2]
[373218524,1752909063667,-190.0,0.0002106,2]
[373218525,1752909063676,-3251.81205292,0.0002106,2]
[373218526,1752909063686,-150.0,0.00021068,2]
[373218527,1752909063695,-212.0,0.0002107,2]
[373218528,1752909063705,-232.0,0.0002107,2]
[373218529,1752909063714,-500.0,0.00021073,2]
[373218530,1752909063724,-500.0,0.00021073,2]
[373218531,1752909063734,-500.0,0.00021073,2]
[373218532,1752909063743,-500.0,0.00021073,2]
[373218533,1752909063753,-159.68623185,0.00021073,2]
[373218534,1752909063763,-500.0,0.00021073,2]
[373218535,1752909063776,-150.0,0.00021077,2]
[373218536,1752909063786,-192.99,0.00021078,2]
[373218537,1752909063796,-76628.328852,0.00021085,2]
[373218538,1752909063809,-151.0,0.00021085,2]
[373218539,1752909063819,-262.523976,0.00021085,2]
[373218540,1752909063829,-417.0,0.000211,2]
[373218541,1752909063840,-330.38337552,0.00021109,2]
[373218542,1752909063849,-1895.45,0.00021124,2]
[373218543,1752909063859,-1000.0,0.00021124,2]
[373218544,1752909063869,-480.0,0.00021149,2]
[373218545,1752909063879,-563.18,0.00021149,2]
[373218546,1752909063890,-518.14,0.00021149,2]
[373218547,1752909063902,-242.51809797,0.00021149,2]
[373218548,1752909063912,-792.72,0.00021149,2]
[373218549,1752909063921,-480.0,0.00021149,2]
[373218550,1752909063931,-480.0,0.00021149,2]
[373218551,1752909063940,-600.12,0.00021149,2]
[373218552,1752909063950,-1354.91,0.00021149,2]
[373218553,1752909063960,-801.31,0.00021149,2]
[373218554,1752909063971,-764.91,0.00021149,2]
[373218555,1752909063980,-1230.98,0.00021149,2]
[373218556,1752909063990,-480.0,0.00021149,2]
[373218557,1752909063999,-897.36,0.00021149,2]
[373218558,1752909064009,-718.18,0.00021149,2]
[373218559,1752909064019,-606.55,0.00021149,2]
[373218560,1752909064028,-480.0,0.00021149,2]
[373218561,1752909064038,-539.16,0.00021149,2]
[373218562,1752909064047,-480.0,0.00021149,2]
[373218563,1752909064057,-921.82,0.00021149,2]
[373218564,1752909064067,-480.0,0.00021149,2]
[373218565,1752909064076,-480.0,0.00021149,2]
[373218566,1752909064087,-573.09,0.00021149,2]
[373218567,1752909064096,-843.96,0.00021149,2]
[373218568,1752909064106,-480.0,0.00021149,2]
[373218569,1752909064115,-534.74,0.00021149,2]
[373218570,1752909064125,-480.0,0.00021149,2]
[373218571,1752909064135,-255.23491574,0.00021149,2]
[373218572,1752909064145,-499.01853115,0.00021149,2]
[373218573,1752909064155,-7391.1,0.00021149,2]
[373218574,1752909064165,-637.96,0.00021149,2]
[373218575,1752909064175,-603.7177094,0.00021149,2]
[373218576,1752909064185,-875.35,0.00021149,2]
[373218577,1752909064195,-480.0,0.00021149,2]
[373218578,1752909064205,-1009.52,0.00021149,2]
[373218579,1752909064215,-1341.18,0.00021149,2]
[373218580,1752909064224,-937.01,0.00021149,2]
[373218581,1752909064235,-569.54817791,0.00021149,2]
[373218582,1752909064246,-681.25,0.00021149,2]
[373218583,1752909064256,-480.0,0.00021149,2]
[373218584,1752909064265,-480.0,0.00021149,2]
[373218585,1752909064275,-540.38,0.00021149,2]
[373218586,1752909064285,-480.0,0.00021149,2]
[373218587,1752909064295,-480.0,0.00021149,2]
[373218588,1752909064306,-835.27,0.00021149,2]
[373218589,1752909064316,-536.6,0.00021149,2]
[373218590,1752909064326,-1223.95,0.00021149,2]
[373218591,1752909064336,-527.24030434,0.00021149,2]
[373218592,1752909064348,-480.0,0.00021149,2]
[373218593,1752909064360,-499.34,0.00021149,2]
[373218594,1752909064370,-566.64,0.00021149,2]
[373218595,1752909064379,-571.22,0.00021149,2]
[373218596,1752909064389,-615.64,0.00021149,2]
[373218597,1752909064398,-480.0,0.00021149,2]
[373218598,1752909064409,-480.0,0.00021149,2]
[373218599,1752909064419,-1220.62,0.00021149,2]
[373218600,1752909064428,-480.0,0.00021149,2]
[373218601,1752909064438,-480.0,0.00021149,2]
[373218602,1752909064447,-726.16,0.00021149,2]
[373218603,1752909064457,-581.07,0.0002115,2]
[373218604,1752909064466,-628.11,0.0002115,2]
[373218605,1752909064477,-480.0,0.0002115,2]
[373218606,1752909064489,-4441.88,0.0002115,2]
[373218607,1752909064499,-1011.37,0.0002115,2]
[373218608,1752909064510,-1953.2,0.0002115,2]
[373218609,1752909064519,-480.0,0.0002115,2]
[373218610,1752909064529,-631.07,0.0002115,2]
[373218611,1752909064538,-480.0,0.0002115,2]
[373218612,1752909064548,-725.13,0.0002115,2]
[373218613,1752909064557,-568.26,0.0002115,2]
[373218614,1752909064567,-2076.63,0.0002115,2]
[373218615,1752909064576,-480.0,0.0002115,2]
[373218616,1752909064585,-150.0,0.00021177,2]
[373218617,1752909064594,-900.0,0.000212,4]
[373218618,1752909064605,-378.0,0.000212,2]
[373218619,1752909064614,-773.0,0.000212,2]
[373218620,1752909064623,-239.0,0.000212,2]
[373218621,1752909064633,-150.0,0.00021201,2]
[373218622,1752909064643,-600.0,0.00021206,2]
[373218623,1752909064652,-150.0,0.0002123,2]
[373218624,1752909064662,-150.0,0.00021231,2]
[373218625,1752909064671,-152.0,0.00021235,3]
[373218626,1752909064680,-330.38337552,0.00021241,2]
[373218627,1752909064690,-1000.0,0.00021243,2]
[373218628,1752909064699,-200.0,0.00021251,2]
[373218629,1752909064708,-726.16,0.00021258,2]
[373218630,1752909064717,-480.0,0.00021259,2]
[373218631,1752909064726,-563.18,0.00021259,2]
[373218632,1752909064736,-518.14,0.00021259,2]
[373218633,1752909064746,-792.72,0.00021259,2]
[373218634,1752909064755,-329.89559455,0.00021259,2]
[373218635,1752909064764,-480.0,0.00021259,2]
[373218636,1752909064774,-600.12,0.00021259,2]
[373218637,1752909064785,-1354.91,0.00021259,2]
[373218638,1752909064795,-801.31,0.00021259,2]
[373218639,1752909064808,-764.91,0.00021259,2]
[373218640,1752909064818,-1230.98,0.00021259,2]
[373218641,1752909064827,-480.0,0.00021259,2]
[373218642,1752909064837,-897.36,0.00021259,2]
[373218643,1752909064847,-718.18,0.00021259,2]
[373218644,1752909064856,-606.55,0.00021259,2]
[373218645,1752909064867,-480.0,0.00021259,2]
[373218646,1752909064877,-539.16,0.00021259,2]
[373218647,1752909064887,-480.0,0.00021259,2]
[373218648,1752909064896,-921.82,0.00021259,2]
[373218649,1752909064906,-480.0,0.00021259,2]
[373218650,1752909064915,-480.0,0.00021259,2]
[373218651,1752909064925,-573.09,0.00021259,2]
[373218652,1752909064934,-843.96,0.00021259,2]
[373218653,1752909064943,-480.0,0.00021259,2]
[373218654,1752909064952,-534.74,0.00021259,2]
[373218655,1752909064962,-480.0,0.00021259,2]
[373218656,1752909064972,-7391.1,0.00021259,2]
[373218657,1752909064981,-637.96,0.00021259,2]
[373218658,1752909064990,-875.35,0.00021259,2]
[373218659,1752909065000,-480.0,0.00021259,2]
[373218660,1752909065009,-1009.52,0.00021259,2]
[373218661,1752909065019,-1341.18,0.00021259,2]
[373218662,1752909065029,-937.01,0.00021259,2]
[373218663,1752909065038,-681.25,0.00021259,2]
[373218664,1752909065047,-480.0,0.00021259,2]
[373218665,1752909065057,-480.0,0.00021259,2]
[373218666,1752909065067,-480.0,0.00021259,2]
[373218667,1752909065076,-540.38,0.00021259,2]
[373218668,1752909065085,-480.0,0.00021259,2]
[373218669,1752909065094,-835.27,0.00021259,2]
[373218670,1752909065104,-536.6,0.00021259,2]
[373218671,1752909065114,-1223.95,0.00021259,2]
[373218672,1752909065124,-480.0,0.00021259,2]
[373218673,1752909065133,-499.34,0.00021259,2]
[373218674,1752909065144,-566.64,0.00021259,2]
[373218675,1752909065153,-571.22,0.00021259,2]
[373218676,1752909065163,-615.64,0.00021259,2]
[373218677,1752909065173,-480.0,0.00021259,2]
[373218678,1752909065182,-480.0,0.00021259,2]
[373218679,1752909065192,-1220.62,0.00021259,2]
[373218680,1752909065204,-416.91479002,0.00021259,2]
[373218681,1752909065214,-480.0,0.00021259,2]
[373218682,1752909065224,-169.192244,0.0002126,2]
[373218683,1752909065234,-581.07,0.0002126,2]
[373218684,1752909065244,-628.11,0.0002126,2]
[373218685,1752909065253,-480.0,0.0002126,2]
[373218686,1752909065263,-4441.88,0.0002126,2]
[373218687,1752909065273,-1011.37,0.0002126,2]
[373218688,1752909065283,-1953.2,0.0002126,2]
[373218689,1752909065292,-480.0,0.0002126,2]
[373218690,1752909065302,-631.07,0.0002126,2]
[373218691,1752909065311,-480.0,0.0002126,2]
[373218692,1752909065322,-725.13,0.0002126,2]
[373218693,1752909065454,-568.26,0.0002126,2]
[373218694,1752909065473,-2076.63,0.0002126,2]
[373218695,1752909065483,-480.0,0.0002126,2]
[373218696,1752909065494,-223.0315306,0.00021267,2]
[373218697,1752909065504,-150.0,0.00021278,2]
[373218698,1752909065513,-500.0,0.00021292,2]
[373218699,1752909065523,-500.0,0.00021292,2]
[373218700,1752909065534,-150.0,0.00021292,2]
[373218701,1752909065544,-200.0,0.00021292,2]
[373218702,1752909065554,-150.0,0.00021292,2]
[373218703,1752909065564,-500.0,0.00021292,2]
[373218704,1752909065574,-200.0,0.00021292,2]
[373218705,1752909065584,-150.0,0.00021292,2]
[373218706,1752909065594,-500.0,0.00021292,2]
[373218707,1752909065604,-150.0,0.00021292,2]
[373218708,1752909065614,-2577.0,0.00021292,2]
[373218709,1752909065625,-150.0,0.00021292,2]
[373218710,1752909065635,-150.0,0.00021292,2]
[373218711,1752909065645,-872.0,0.00021292,2]
[373218712,1752909065655,-150.0,0.00021292,2]
[373218713,1752909065666,-500.0,0.00021292,2]
[373218714,1752909065678,-150.0,0.00021292,2]
[373218715,1752909065688,-150.0,0.00021292,2]
[373218716,1752909065698,-150.0,0.00021292,2]
[373218717,1752909065707,-150.0,0.00021292,2]
[373218718,1752909065718,-150.0,0.00021292,2]
[373218719,1752909065728,-200.0,0.00021292,2]
[373218720,1752909065739,-150.0,0.00021292,2]
[373218721,1752909065748,-200.0,0.00021292,2]
[373218722,1752909065758,-150.0,0.00021292,2]
[373218723,1752909065771,-661.0,0.00021292,2]
[373218724,1752909065781,-150.0,0.00021292,2]
[373218725,1752909065791,-500.0,0.00021292,2]
[373218726,1752909065805,-180.0,0.00021292,2]
[373218727,1752909065815,-150.0,0.00021292,2]
[373218728,1752909065825,-150.0,0.00021294,2]
[373218729,1752909065835,-2415.09,0.000213,2]
[373218730,1752909065847,-150.0,0.0002131,2]
[373218731,1752909065857,-150.0,0.00021323,2]
[373218732,1752909065868,-150.0,0.00021326,2]
[373218733,1752909065879,-5281.48019521,0.00021343,2]
[373218734,1752909065889,-20174.0764392,0.0002135,4]
[373218735,1752909065899,-1811.45,0.00021353,2]
[373218736,1752909065909,-1354.91,0.00021368,2]
[373218737,1752909065919,-801.31,0.00021368,2]
[373218738,1752909065928,-480.0,0.00021368,2]
[373218739,1752909065939,-897.36,0.00021368,2]
[373218740,1752909065948,-539.16,0.00021368,2]
[373218741,1752909065957,-196.81161089,0.00021368,2]
[373218742,1752909065967,-480.0,0.00021368,2]
[373218743,1752909065977,-573.09,0.00021368,2]
[373218744,1752909065986,-843.96,0.00021368,2]
[373218745,1752909065996,-480.0,0.00021368,2]
[373218746,1752909066006,-1009.52,0.00021368,2]
[373218747,1752909066016,-480.0,0.00021368,2]
[373218748,1752909066027,-1341.18,0.00021368,2]